Cogmind - Beta 10.2 @@@ ROGUE MODE // 2021.01.03 @ 05:26:44 Player: Espresso Result: Destroyed by G-47 Trooper with Particle Gun Performance ------------- Evolutions (2) 1000 Regions Visited (4) 800 Robots Destroyed (7) 35 Value Destroyed (78) 78 Prototype IDs (3) 60 Alien Tech Used (0) 0 Bonus (349) 349 TOTAL SCORE: 2322 Bonus ------- Pacifist 200 Follower Combat Kills 149 Cogmind --------- Core Integrity 0/550 Matter 289/300 Energy 79/100 System Corruption 2% Temperature Cool (9) Movement Core (50) Location -8/Materials Parts ------- > --- POWER (3) -------- (None) > --- PROPULSION (4) --- (None) > --- UTILITY (2) ------ (None) > --- WEAPON (2) ------- (None) > --- INVENTORY (4) ---- Experimental Sensor Array Peak State ------------ > --- POWER ------------ Heavy Ion Engine Heavy Ion Engine > --- PROPULSION ------- Flight Unit Flight Unit > --- UTILITY ---------- Advanced Weight Redist. System Advanced Weight Redist. System > --- WEAPON ----------- Precision Beam Rifle Katana > --- INVENTORY -------- Deuterium Engine Experimental Sensor Array Ion Cannon [Rating: 22] Favorites ----------- Power Heavy Ion Engine Engine Heavy Ion Engine Propulsion Flight Unit Treads Light Treads Flight Unit Flight Unit Utility Visual Processing Unit Device Weight Redist. System Storage Small Storage Unit Processor Visual Processing Unit Weapon Katana Energy Gun Precision Beam Rifle Energy Cannon Ion Cannon Ballistic Gun Assault Rifle Impact Weapon Heavy Mace Slashing Weapon Katana Build | -11 -10 -10 -9 -8 ------- Run | Scr Mat Min Mat Mat Slots Evolved 4 | . . . 2 2 Power 2 | . . . 1 1 Propulsion 2 | . . . 1 1 Utility . | . . . . . Weapon . | . . . . . Parts Attached 30 | 7 4 1 11 7 Power 9 | 1 . . 7 1 Engine 9 | 1 . . 7 1 Core . | . . . . . Reactor . | . . . . . Propulsion 4 | 2 2 . . . Treads 2 | 2 . . . . Leg . | . . . . . Wheel . | . . . . . Hover . | . . . . . Flight 2 | . 2 . . . Utility 9 | 1 2 1 2 3 Device 7 | . 1 1 2 3 Storage 1 | 1 . . . . Processor 1 | . 1 . . . Hackware . | . . . . . Protection . | . . . . . Artifact . | . . . . . Weapon 8 | 3 . . 2 3 Energy Gun 2 | 1 . . . 1 Energy Cannon 1 | . . . . 1 Ballistic Gun 3 | 2 . . . 1 Ballistic Cannon . | . . . . . Launcher . | . . . . . Special Weapon . | . . . . . Impact Weapon 1 | . . . 1 . Slashing Weapon 1 | . . . 1 . Piercing Weapon . | . . . . . Special Melee Weapon . | . . . . . Unidentified Prototypes 3 | . . 1 1 1 Parts Lost 8 | . . . . 8 Power 2 | . . . . 2 Propulsion 2 | . . . . 2 Utility 1 | . . . . 1 Weapon 3 | . . . . 3 Highest Loss Streak 7 | . . . . 7 Average Slot Usage (%) 66 | . 74 71 66 55 Engine 16 | . 14 14 18 14 Flight 22 | . 18 28 22 11 Device 10 | . 4 14 8 14 Processor 10 | . 4 14 11 . Slashing Weapon 4 | . . . 7 7 Naked Turns 18 | . . . . 18 Heaviest Build 20 | 13 12 7 20 20 Greatest Support 40 | 40 40 8 14 26 Greatest Overweight (x) 4 | 4 1 1 2 1 Average Overweight (x) . | . . . . . Largest Inventory Capacity 6 | 6 6 4 4 4 Average Capacity 4 | 5 5 4 4 4 Most Carried 6 | 1 6 4 4 4 Average Carried 3 | . 3 3 3 3 Final Capacity 6 | 6 4 4 4 4 Final Carried 4 | 1 4 3 4 1 Class Distribution -------------------- 100% | Mutant Dominant Class ---------------- Mutant | -10/Materials Mutant | -10/Mines Mutant | -9/Materials Mutant | -8/Materials Resources | -11 -10 -10 -9 -8 ----------- Run | Scr Mat Min Mat Mat Matter Collected 474 | 89 . 41 300 44 Remotely . | . . . . . Salvage Created 354 | . . . 239 115 Parts 16 | . . . 10 6 Haulers Intercepted 2 | . . . 2 . Recyclers Shooed 2 | . . . 2 . Parts Field Recycled . | . . . . . Retrieved Matter . | . . . . . Parts Self-Destructed . | . . . . . Prevented . | . . . . . Kills | -11 -10 -10 -9 -8 ------- Run | Scr Mat Min Mat Mat Combat Hostiles Destroyed 1 | . . . . 1 Melee 1 | . . . . 1 Classes Destroyed 5 | . . . 4 1 Worker 1 | . . . 1 . Hauler 2 | . . . 2 . Recycler 2 | . . . 1 1 Operator 1 | . . . 1 . Sentry 1 | . . . . 1 Best Kill Streak 2 | . . . 1 2 Combat Bots Only 1 | . . . . 1 Max Kills in Single Turn 1 | . . . 1 1 Gunslinging . | . . . . . Exploded . | . . . . . Melee 1 | . . . . 1 Uniques/NPCs Destroyed . | . . . . . Combat | -11 -10 -10 -9 -8 -------- Run | Scr Mat Min Mat Mat Damage Taken 1247 | . . . 11 1236 Core 558 | . . . . 558 Absorbed by Shields . | . . . . . Core Remaining (%) 100 | 100 . 100 100 . Volleys Fired 9 | . . . . 9 Largest 1 | . . . . 1 Hottest 61 | . . . . 61 Shots Fired 9 | . . . . 9 Gun 9 | . . . . 9 Cannon . | . . . . . Launcher . | . . . . . Special . | . . . . . Kinetic . | . . . . . Thermal 9 | . . . . 9 Explosive . | . . . . . Electromagnetic . | . . . . . Robot Hit Streak 6 | . . . . 6 Robot Miss Streak 1 | . . . . 1 Penetration Max . | . . . . . Secondary Targets . | . . . . . Shots Hit Robots 25 | . . . 12 13 Core Hits 10 | . . . 5 5 Critical Hits . | . . . . . Critical Kills . | . . . . . Critical Parts Destroyed . | . . . . . Melee Attacks 19 | . . . 14 5 Impact . | . . . . . Slashing 19 | . . . 14 5 Piercing . | . . . . . Sneak Attacks 6 | . . . 6 . Combat Hostiles . | . . . . . Follow-up Attacks . | . . . . . Damage Inflicted 1066 | . . . 766 300 Guns 139 | . . . . 139 Cannons . | . . . . . Explosions . | . . . . . Melee 915 | . . . 766 149 Ramming 12 | . . . . 12 Kinetic . | . . . . . Thermal 139 | . . . . 139 Explosive . | . . . . . Electromagnetic . | . . . . . Impact . | . . . . . Slashing 915 | . . . 766 149 Piercing . | . . . . . Highest Corruption 2 | . . . . 2 Average Corruption 2 | . . . . 2 Corruption Purged . | . . . . . Overload Shots . | . . . . . Overflow Damage 125 | . . . 125 . Projectiles . | . . . . . Explosions . | . . . . . Melee 125 | . . . 125 . Knockbacks . | . . . . . Impact . | . . . . . Kinetic . | . . . . . Secondary . | . . . . . Self-Inflicted Damage 6 | . . . . 6 Shots . | . . . . . Rammed 3 | . . . . 3 Targets Rammed 3 | . . . . 3 Kicked . | . . . . . Crushed . | . . . . . Highest Temperature 298 | . . . . 298 Average Temperature 146 | . . . . 146 Received Heat Transfer 690 | . . . 6 684 Effects 1 | . . . . 1 Interference 1 | . . . . 1 Siege Activations . | . . . . . Robots Corrupted . | . . . . . Combat Hostiles . | . . . . . Parts Fried . | . . . . . Impact Corruptions . | . . . . . Robots Melted . | . . . . . Combat Hostiles . | . . . . . Parts Melted . | . . . . . Heat Transferred 296 | . . . . 296 Parts Sabotaged . | . . . . . Parts Stolen . | . . . . . Parts Stripped . | . . . . . Power Chain Reactions . | . . . . . Missiles Intercepted . | . . . . . Alert | -11 -10 -10 -9 -8 ------- Run | Scr Mat Min Mat Mat Peak Influence 238 | . . . 238 197 Initial 100 | . . . . 100 Average 59 | . . . 86 124 Maximum Alert Level 1 | . . . 1 . Low Security (%) 89 | 100 100 100 78 100 Level 1 10 | . . . 21 . Level 2 . | . . . . . Level 3 . | . . . . . Level 4 . | . . . . . Level 5 . | . . . . . High Security . | . . . . . Max Security . | . . . . . Squads Dispatched 4 | . . . 2 2 Investigation 1 | . . . . 1 Extermination . | . . . . . Reinforcement 3 | . . . 2 1 Assault . | . . . . . Garrison . | . . . . . Intercept . | . . . . . Construction Impeded . | . . . . . Haulers Reinforced . | . . . . . Stealth | -11 -10 -10 -9 -8 --------- Run | Scr Mat Min Mat Mat Distress Signals 1 | . . . 1 . Communications Jammed . | . . . . . Distress Signals . | . . . . . Times Spotted 27 | . . . 15 12 Peak Tracking Total 7 | . . . 3 7 Tactical Retreats 2 | . . . . 2 Traps | -11 -10 -10 -9 -8 ------- Run | Scr Mat Min Mat Mat Traps Triggered . | . . . . . Indirectly . | . . . . . Trap Hack Attempts . | . . . . . Triggered . | . . . . . Disarmed . | . . . . . Reprogrammed . | . . . . . Reused . | . . . . . Traps Extracted . | . . . . . Installed . | . . . . . Triggered . | . . . . . Machines | -11 -10 -10 -9 -8 ---------- Run | Scr Mat Min Mat Mat Machines Disabled . | . . . . . Max in Single Turn . | . . . . . Machines Sabotaged . | . . . . . Garrisons Compromised . | . . . . . Overloaded Fab Kills . | . . . . . Fab Network Shutdowns . | . . . . . Hacking | -11 -10 -10 -9 -8 --------- Run | Scr Mat Min Mat Mat Machines Accessed 1 | . . . 1 . Terminals . | . . . . . Fabricators . | . . . . . Repair Stations 1 | . . . 1 . Recycling Units . | . . . . . Scanalyzers . | . . . . . Garrison Access . | . . . . . Total Hacks 2 | . . . 2 . Successful 2 | . . . 2 . Failed . | . . . . . Catastrophic . | . . . . . Database Lockouts . | . . . . . Manual . | . . . . . Terminals . | . . . . . Fabricators . | . . . . . Repair Stations 2 | . . . 2 . Recycling Units . | . . . . . Scanalyzers . | . . . . . Garrison Access . | . . . . . Terminal Hacks . | . . . . . Fabricator Hacks . | . . . . . Repair Station Hacks 2 | . . . 2 . Scan Component 1 | . . . 1 . Repair 1 | . . . 1 . Recycling Unit Hacks . | . . . . . Scanalyzer . | . . . . . Garrison Access Hacks . | . . . . . Unauthorized Hacks . | . . . . . Terminals . | . . . . . Fabricators . | . . . . . Repair Stations . | . . . . . Recycling Units . | . . . . . Scanalyzers . | . . . . . Garrison Access . | . . . . . Data Cores Recovered . | . . . . . Used . | . . . . . Hacking Detections 1 | . . . 1 . Full Trace Events . | . . . . . Feedback Events . | . . . . . Feedback Blocked . | . . . . . Robot Schematics Acquired . | . . . . . Robots Built . | . . . . . Matter . | . . . . . Time . | . . . . . Total Robot Build Rating . | . . . . . Part Schematics Acquired . | . . . . . Parts Built . | . . . . . Matter . | . . . . . Time . | . . . . . Total Part Build Rating . | . . . . . Parts Repaired 1 | . . . 1 . Time 80 | . . . 80 . Parts Recycled . | . . . . . Recycled Matter . | . . . . . Retrieved Matter . | . . . . . Retrieved Components . | . . . . . Parts Scanalyzed . | . . . . . Part Schematics Acquired . | . . . . . Parts Damaged . | . . . . . Bothacking | -11 -10 -10 -9 -8 ------------ Run | Scr Mat Min Mat Mat Used RIF Installer . | . . . . . Robots Hacked . | . . . . . Non-combat . | . . . . . Combat . | . . . . . Robot Hacks Applied . | . . . . . Relay Couplers Released . | . . . . . Robots Rewired . | . . . . . Allies Hacked . | . . . . . Hacks Repelled . | . . . . . Allies | -11 -10 -10 -9 -8 -------- Run | Scr Mat Min Mat Mat Total Allies 3 | . . 3 . . Largest Group 3 | . . 3 3 1 Highest-Rated Group 40 | . . 40 40 16 Highest-Rated Ally 16 | . . 16 16 16 Total Orders . | . . . . . Ally Attacks 58 | . . . 51 7 Total Damage 626 | . . . 565 61 Kills 9 | . . . 9 . Allies Corrupted . | . . . . . Allies Melted . | . . . . . Intel | -11 -10 -10 -9 -8 ------- Run | Scr Mat Min Mat Mat Robot Analysis Total . | . . . . . Derelict Logs Recovered 1 | . . 1 . . Drone Launches . | . . . . . Drone Recoveries . | . . . . . Exploration | -11 -10 -10 -9 -8 ------------- Run | Scr Mat Min Mat Mat Turns Passed 1585 | 66 84 445 779 211 Spaces Moved 1203 | 35 115 321 436 296 Core 47 | 8 . . . 39 Treads 42 | 27 15 . . . Legs . | . . . . . Wheels . | . . . . . Hover . | . . . . . Flight 1114 | . 100 321 436 257 Fastest Speed 37 | 50 37 37 37 37 Average Speed 87 | 159 57 100 110 44 Slowest Speed 250 | 250 160 120 197 117 Overloaded Moves . | . . . . . Propulsion Burnouts . | . . . . . Robots Hopped 12 | . . . . 12 Cave-ins Triggered . | . . . . . Exploration Rate (%) 35 | 4 24 88 37 26 Regions Visited 4 Branch Regions 1 Pre-discovered Areas 1 | . . 1 . . Known Exits Taken . | . . . . . Unknown Exits Taken 4 | 1 1 1 1 . Scrap Searched 1 | . . 1 . . Spaces Dug . | . . . . . Terrain Destroyed . | . . . . . Melee . | . . . . . Projectile . | . . . . . AOE . | . . . . . Terrain Rammed . | . . . . . Walls Destroyed . | . . . . . Machines Disabled . | . . . . . Actions | -11 -10 -10 -9 -8 --------- Run | Scr Mat Min Mat Mat Total 1680 | 42 135 442 713 348 Wait 393 | . 1 118 242 32 Move 1180 | 34 114 320 435 277 Hop 7 | . . . . 7 Pick Up 13 | 1 7 1 2 2 Fast Attach 20 | 6 2 . 9 3 Attach 3 | . . . . 3 Detach 3 | . 2 . 1 . Swap 7 | 1 2 1 2 1 Drop 23 | . 7 2 8 6 Fire 9 | . . . . 9 Melee 19 | . . . 14 5 Ram 3 | . . . . 3 Kick . | . . . . . Crush . | . . . . . Escape Stasis . | . . . . . Rewire . | . . . . . Trap . | . . . . . Miscellaneous . | . . . . . Route ------- -11/Scrapyard -10/Materials -10/Mines -9/Materials -8/Materials History --------- Turn | Location | Event 14 | -11/Scrapyard | Discovered new exit (range 15) 67 | -11/Scrapyard | Entered Materials 145 | -10/Materials | Discovered new exit (range 18) 151 | -10/Materials | Entered Mines 165 | -10/Mines | Assisted by bots powering up and referring to "LRC-V3" 318 | -10/Mines | Build established: Mutant 399 | -10/Mines | Found a damaged Exp. Sensor Array with a note attached 402 | -10/Mines | Found Prototype Device 405 | -10/Mines | Identified Exp. Sensor Array 572 | -10/Mines | Discovered new exit (range 11) 596 | -10/Mines | Entered Materials 596 | -9/Materials | Accompanied by 3 allies 596 | -9/Materials | Evolved 2 slots: Power x1, Propulsion x1 685 | -9/Materials | Repaired Exp. Sensor Array 1354 | -9/Materials | Discovered new exit (range 16) 1375 | -9/Materials | Entered another Materials area 1375 | -8/Materials | Accompanied by 1 ally 1375 | -8/Materials | Evolved 2 slots: Power x1, Propulsion x1 1557 | -8/Materials | Core integrity fell below 50% 1568 | -8/Materials | Released all parts (2) 1570 | -8/Materials | Core integrity fell below 20% 1586 | -8/Materials | Destroyed by G-47 Trooper with Particle Gun Last Messages --------------- Slammed into G-47 Trooper. Adv. Weight Redist. System destroyed. Slammed into G-47 Trooper. Prc. Beam Rifle destroyed. R-06 Scavenger collects Lgt. Treads. R-06 Scavenger collects Lgt. Armor Plating. Dropped Katana. Acquired 5 matter. Ion Cannon destroyed. R-06 Scavenger collects Com. Wheel. K-01 Serf collects debris. Minigun destroyed. Released Deuterium Engine. Released Adv. Weight Redist. System. Acquired 4 matter. K-01 Serf cleans the Nuclear Reactor. K-01 Serf collects debris. K-01 Serf cleans the Nuclear Reactor. R-06 Scavenger collects Katana. U-05 Engineer builds a Wall. Map ----- +----------------------------------------------------+ | """ # """ """ #?????? | | """ # """ """ #?????? | | # """ """ #?????? | | ! ! + #?????? | | ![! # #?????? | | ![ #### ##" "#####????????? | | #??# #?"R"#????????????? | | #######??# #??""#????????????? | | ?????????# #??###????????????? | | ?????????# ##############????? | | ?????????# #????? | | ?????????# ############ #????? | | ?????????# #??????????# #????? | | ????????! #??????????# #????? | | ??????! #??????????# #????? | | ####?#! #????????### #????? | | ]][[?#! #????????+ #????? | | ]][[?#! #????????# ###### | | ?##!! #????#+### # # | | ???#### ?????# + # | | ?????? ?????# # # | | ?????? ??#### # # | | ????? + # | | ?????? #####+##+## # # | | ?????# ??????? ##g# # | | # ###########?????""" ##@#? # | | # # % #??????# """ ## #? # | | # # /*! #??????# """ ## ###### | | %%+ #??????# ## # # | | # # """ #???????! ## # # | | # # """ ################t# # | | # + """ / # | | ########################### # | | ??????????????????????????# #? | | ??????????????????????????#####? | | ???????????????????????????????? | | ???????????????????????????????? | | ???????????????????????????????? | | ???????????????????????????????? | | ???????????????????????????????? | | ???????????????????????????????? | | ???????????????????????????????? | | ???????????????????????????????? | | ???????????????????????????????? | | ???????????????????????????????? | | ???????????????????????????????? | | ???????????????????????????????? | | ???????????????????????????????? | | ???????????????????????????????? | | ???????????????????????????????? | +----------------------------------------------------+ Best States ------------- Heat Dissipation 31 Energy Generation 23 Energy Capacity 460 Matter Stores 300 Matter Capacity 300 Sight Range 18 Robot Scan Range 30 Terrain Scan Density 10 Additional Mass Support 18 Evasion (%) 62 Recoil Reduction 2 Item Schematics ----------------- None Robot Schematics ------------------ None Fabricated ------------ Nothing Alien Tech Used ----------------- None Achievements -------------- Cya! Challenges ------------ None Game ------ Seed MinesnifferHardcellPurifier Manual? 0 Play Time 00:19:52 Cumulative 4.5 hours Start 2021.01.03 @ 05:07:53 End 2021.01.03 @ 05:26:44 Sessions 1 Manual Loads 0 Difficulty Rogue Special Mode None Game No. 17 Rogue 17 Adventurer 0 Explorer 0 Win Type - Total 0 Types 0/0/0/0/0/0/0/0/0 Lore% 11 Gallery% 15 Achievement% 13 Wizard Run 0 Options --------- ASCII 0 Keyboard 0 Movement Numpad Keybinds 0 Fullscreen 1 Font 18/TerminusBold Map View 76x50 Tactical HUD 0 Map Filters NONE Filters NONE Steam X RUN: e090b65e-cec9-4ce4-8ec0-57b83c064022